bitfinex-derivatives/quotes_ETHF0:USTF0_20250123
["timestamp","ask_amount","ask_price","bid_price","bid_amount"]
[1737604470149,0.00465578,3223.9,3223.8,1.87432993]
[1737604470341,0.00465578,3223.9,3223.8,1.87428873]
[1737604470651,0.00465578,3223.9,3223.8,1.87429618]
[1737604472744,0.00465578,3223.9,3223.8,0.91087753]
[1737604472947,0.00465578,3223.9,3223.8,1.06920786]
[1737604473147,0.62541578,3223.9,3223.8,1.06920786]
[1737604473343,0.62541578,3223.9,3223.8,0.62078]
[1737604473947,0.00465578,3223.9,3223.8,0.62078]
[1737604476241,0.00465578,3223.9,3223.4,41.42085]
[1737604476242,0.62083,3223.6,3223.4,41.42085]
[1737604476442,0.9636,3223.8,3223.4,41.42086]
[1737604476643,0.9636,3223.8,3223.5,0.62084]
[1737604476844,0.62082,3223.6,3223.5,0.62084]
[1737604477142,0.9636,3223.8,3223.4,40.8]
[1737604477447,0.62081,3223.7,3223.5,0.62083]
[1737604478246,0.9636,3223.8,3223.4,40.8]
[1737604478553,0.6208,3223.7,3223.5,0.62084]
[1737604478850,0.9636,3223.8,3223.5,0.62084]
[1737604479048,0.62082,3223.6,3223.5,0.62084]
[1737604479353,0.62081,3223.7,3223.5,0.62084]
[1737604480055,0.9636,3223.8,3223.7,0.6208]
[1737604480253,0.00465578,3223.9,3223.8,0.62078]
[1737604481859,0.00465578,3223.9,3223.8,1.06971863]
[1737604482652,0.00465578,3223.9,3223.8,1.4127143]
[1737604482855,0.00465578,3223.9,3223.8,1.06971863]
[1737604484556,0.00465578,3223.9,3223.8,0.62078]
[1737604488251,5.78e-06,3223.9,3223.8,0.62078]
[1737604488554,1.002,3225.0,3224.9,0.62057]
[1737604488756,0.5247,3225.4,3224.8,3.2078]
[1737604488951,0.5247,3225.4,3225.3,0.62049]
[1737604489257,3.7242,3226.0,3225.9,0.62038]
[1737604489759,0.5247,3226.2,3226.1,0.62034]
[1737604489955,0.5247,3226.2,3225.7,3.2078]
[1737604490158,1.14502,3226.2,3226.0,0.62035]
[1737604490458,0.5247,3226.2,3226.1,41.42034]
[1737604490657,0.00465578,3226.3,3226.2,0.62032]
[1737604491255,0.00465578,3226.3,3226.1,40.8]
[1737604491559,0.62032,3226.2,3226.1,40.8]
[1737604492057,0.62037,3226.0,3225.7,0.6204]
[1737604492256,0.62037,3226.0,3225.6,0.00465578]
[1737604492257,0.5153,3225.9,3225.6,0.00465578]
[1737604492456,0.62041,3225.7,3225.6,0.00465578]
[1737604492753,0.5153,3225.9,3225.3,3.2078]
[1737604492954,0.5153,3225.9,3224.6,0.4803]
[1737604492955,3.2078,3225.4,3224.6,0.4803]
[1737604493157,0.62052,3225.2,3224.9,0.62056]
[1737604493359,3.2078,3225.4,3224.6,0.4803]
[1737604493652,3.82828,3225.4,3225.2,0.6205]
[1737604493854,0.5148,3225.6,3224.7,3.21245578]
[1737604494049,0.5148,3225.6,3225.5,0.62045]
[1737604494656,3.7231,3225.9,3225.1,3.2078]
[1737604494860,0.5153,3225.9,3225.8,0.62039]
[1737604495859,1.13568,3225.9,3225.7,0.62041]
[1737604496360,0.62043,3225.7,3225.4,0.62046]
[1737604497059,3.7231,3225.9,3225.4,0.62046]
[1737604497255,0.6205,3225.3,3224.8,0.62059]
[1737604497558,3.2078,3225.5,3225.2,0.6205]
[1737604497865,3.82826,3225.5,3225.3,40.8]
[1737604498155,3.82826,3225.5,3225.3,41.42048]
[1737604498361,3.82825,3225.5,3225.3,41.42048]
[1737604498556,3.2078,3225.5,3225.3,41.42048]
[1737604498752,3.2078,3225.5,3225.3,40.8]
[1737604498951,3.2078,3225.5,3225.3,41.42048]
[1737604499364,3.7231,3225.9,3225.3,40.8]
[1737604499850,0.62043,3225.7,3225.4,0.62046]
[1737604500049,3.7231,3225.9,3225.5,0.62045]
[1737604500253,3.7231,3225.9,3225.3,40.8]
[1737604500456,0.5153,3225.9,3225.3,40.8]
[1737604500651,0.62046,3225.5,3225.3,41.42048]
[1737604500855,0.62047,3225.4,3225.3,40.8]
[1737604501062,0.4788,3225.4,3225.3,40.8]
[1737604501463,1.09927,3225.4,3225.3,40.8]
[1737604501660,0.4788,3225.4,3225.3,41.42049]
[1737604501861,0.62042,3225.7,3225.3,40.8]
[1737604502252,0.478,3225.8,3225.3,40.8]
[1737604502658,1.09841,3225.8,3225.6,0.62042]
[1737604503159,0.478,3225.8,3225.3,40.8]
[1737604503358,0.62045,3225.6,3225.4,0.62046]
[1737604503559,0.478,3225.8,3225.3,40.8]
[1737604503760,1.0984,3225.8,3225.5,0.62043]
[1737604504466,0.62044,3225.6,3225.4,0.62046]
[1737604504863,0.478,3225.8,3225.3,40.8]
[1737604505064,0.62043,3225.7,3225.3,40.8]
[1737604505370,0.62043,3225.7,3225.5,0.62045]
[1737604505964,3.2078,3225.7,3225.5,0.62045]
[1737604506970,3.2078,3225.7,3225.3,40.8]
[1737604507171,3.2078,3225.7,3224.5,1.55157]
[1737604507172,8.2078,3225.7,3224.6,3.82842]
[1737604507471,0.62059,3224.8,3224.6,3.2078]
[1737604507665,3.2078,3225.3,3224.2,3.2078]
[1737604507972,1.12004,3225.1,3224.8,0.62059]
[1737604508173,0.4995,3225.1,3224.7,40.80465578]
[1737604508666,0.4995,3225.1,3225.0,0.62055]
[1737604509069,0.4995,3225.1,3224.7,40.80465578]
[1737604509370,1.12003,3225.1,3224.9,0.62056]
[1737604509570,0.4995,3225.1,3225.0,0.62055]
[1737604510477,0.4995,3225.1,3224.7,40.80465578]
[1737604510666,3.2078,3225.3,3225.2,0.62051]
[1737604510971,3.2078,3225.3,3224.7,0.00465578]
[1737604511169,0.62053,3225.1,3224.9,0.62056]
[1737604511471,0.62053,3225.1,3225.0,40.8]
[1737604511977,3.2078,3225.3,3224.7,0.00465578]
[1737604511978,0.62059,3224.8,3224.7,0.00465578]
[1737604512382,0.62059,3224.8,3224.7,40.80465578]
[1737604516071,0.4898,3224.9,3224.8,0.62059]
[1737604516271,3.82829,3225.3,3225.2,0.62051]
[1737604516683,3.2078,3225.3,3225.2,0.62051]
[1737604517570,3.2078,3225.3,3225.2,41.42051]
[1737604518781,0.62046,3225.5,3225.2,40.8]
[1737604518978,1.0208,3225.7,3225.2,40.8]
[1737604519283,1.0208,3225.7,3225.3,0.62049]
[1737604519284,0.62048,3225.4,3225.3,0.62049]
[1737604519482,1.0208,3225.7,3225.2,40.8]
[1737604519688,3.2078,3225.8,3225.2,40.8]
[1737604519974,0.4917,3226.1,3225.6,4.75884]
[1737604520171,3.2078,3226.7,3225.7,0.46471473]
[1737604520368,0.62033,3226.2,3225.7,0.5187]
[1737604520576,0.62041,3225.7,3225.6,3.2078]
[1737604520776,0.62045,3225.5,3225.3,0.62048]
[1737604521085,3.2078,3225.9,3225.2,40.8]
[1737604521277,0.62054,3225.1,3224.8,0.5187]
[1737604521476,0.6205,3225.3,3225.0,0.62054]
[1737604521783,3.2078,3225.4,3224.9,40.8]
[1737604522081,0.62043,3225.7,3225.5,0.62044]
[1737604522681,3.2078,3226.0,3225.3,3.2078]
[1737604522878,3.2078,3226.0,3225.9,0.62038]
[1737604523573,3.82809,3226.4,3226.2,0.62032]
[1737604524082,3.82809,3226.4,3226.2,41.42032]
[1737604525185,3.2078,3226.4,3226.2,41.42032]
[1737604525390,0.62027,3226.5,3226.2,41.42032]
[1737604526791,1.61814,3226.6,3226.2,41.42032]
[1737604526988,0.5022,3226.6,3226.2,41.42032]
[1737604527184,3.2078,3227.0,3226.2,41.42032]
[1737604527592,3.2078,3227.0,3226.2,47.22189637]
[1737604527890,0.9647,3227.2,3227.1,0.62015]
[1737604528092,1.58483,3227.2,3227.0,0.62016]
[1737604528287,0.9647,3227.2,3227.0,0.62016]
[1737604528798,0.9647,3227.2,3226.7,3.2078]
[1737604528989,0.9647,3227.2,3227.1,0.62015]
[1737604529391,0.4783,3227.2,3227.1,0.62015]
[1737604529695,0.62015,3227.1,3226.9,0.62017]
[1737604529887,1.09844,3227.2,3226.9,0.62017]
[1737604530086,0.62015,3227.1,3226.9,0.62017]
[1737604530687,0.62015,3227.1,3226.8,0.62483806]
[1737604530897,0.62015,3227.1,3226.9,0.62018]
[1737604531092,0.62014,3227.2,3226.9,0.62018]
[1737604531395,0.62015,3227.1,3226.9,0.62018]
[1737604531594,0.62015,3227.1,3226.8,0.00464806]
[1737604531789,3.2078,3227.1,3226.8,0.00464806]
[1737604531997,0.62018,3227.0,3226.8,0.00464806]
[1737604532294,3.2078,3227.1,3226.8,0.00464806]
[1737604532494,0.62018,3226.9,3226.8,0.00464806]
[1737604533987,1.10888,3226.9,3226.8,0.00464806]
[1737604538198,0.4887,3226.9,3226.3,3.2078]
[1737604538414,0.62028,3226.4,3226.3,3.2078]
[1737604539290,0.6203,3226.3,3226.2,40.8]
[1737604540096,3.8281,3226.3,3226.2,40.8]
[1737604540401,3.8281,3226.3,3226.0,0.00464806]
[1737604540402,0.62034,3226.1,3226.0,0.00464806]
[1737604541103,1.12914,3226.1,3226.0,0.00464806]
[1737604541301,0.62034,3226.1,3226.0,0.00464806]
[1737604541600,1.64204,3226.1,3226.0,0.00464806]
[1737604545208,1.64344379,3226.1,3226.0,0.00464806]
[1737604546602,0.62047,3225.5,3225.3,0.62047]
[1737604546803,0.62047,3225.4,3225.3,0.62048]
[1737604547002,0.62047,3225.4,3225.3,41.42048]
[1737604547403,0.62046,3225.5,3225.3,40.8]
[1737604547609,0.62046,3225.5,3225.4,0.62047]
[1737604548303,0.62044,3225.6,3225.5,0.62045]
[1737604548606,0.62507806,3225.7,3225.3,40.8]
[1737604548802,0.62045,3225.6,3225.4,0.62046]
[1737604549105,0.62045,3225.6,3225.3,40.8]
[1737604549409,0.62045,3225.6,3225.5,0.62045]
[1737604550310,0.62507806,3225.7,3225.5,0.62045]
[1737604550502,0.62043,3225.6,3225.5,0.62045]
[1737604550701,0.62506806,3225.7,3225.6,0.62043]
[1737604551117,0.00464806,3225.7,3225.3,40.8]
[1737604551610,0.00464806,3225.7,3225.6,0.62043]
[1737604552315,0.62506806,3225.7,3225.6,0.62043]
[1737604552912,0.00464806,3225.7,3225.3,40.8]
[1737604553103,0.62046,3225.5,3225.4,0.62046]
[1737604553304,0.62044,3225.6,3225.5,0.62045]
[1737604553613,0.00464806,3225.7,3225.3,40.8]
[1737604553820,0.62507806,3225.7,3225.6,0.62043]
[1737604554012,0.00464806,3225.7,3225.6,0.62043]
[1737604560920,0.00464806,3225.7,3225.6,1.42293566]
[1737604561218,0.00464806,3225.7,3225.6,1.87181175]
[1737604561418,0.00464806,3225.7,3225.6,1.41245749]
[1737604561615,0.00464806,3225.7,3225.6,1.06930609]
[1737604561818,0.00140379,3226.1,3226.0,0.62036]
[1737604562915,0.00140379,3226.1,3225.4,0.4979]
[1737604563118,3.2078,3225.9,3225.4,0.4979]
[1737604563312,0.62175379,3226.1,3226.0,0.62036]
[1737604564823,0.00140379,3226.1,3226.0,0.62036]
[1737604565112,0.00140379,3226.1,3225.9,0.62038]
[1737604565317,0.00140379,3226.1,3225.6,0.5243]
[1737604565520,0.00140379,3226.1,3226.0,0.62036]
[1737604568321,0.00464806,3226.4,3226.3,0.6203]
[1737604568521,0.00464806,3226.4,3226.3,5.36928417]
[1737604568722,0.62011,3227.3,3226.3,50.54898417]
[1737604568919,4.3509,3227.4,3227.2,0.62012]
[1737604569221,0.62012,3227.3,3227.1,0.62013]
[1737604569623,0.62012,3227.3,3226.7,3.2078]
[1737604569820,0.62012,3227.3,3227.1,0.62013]
[1737604570022,0.62475006,3227.3,3227.1,0.62013]
[1737604570521,0.00463006,3227.3,3227.2,0.62013]
[1737604571221,0.62475006,3227.3,3227.1,0.62013]
[1737604571521,0.62475006,3227.3,3227.2,0.62013]
[1737604571522,0.00463006,3227.3,3227.2,0.62013]
[1737604572327,0.62474006,3227.3,3227.2,0.62013]
[1737604572626,0.00463006,3227.3,3227.2,0.62013]
[1737604574225,0.62017,3227.0,3226.7,3.21244806]
[1737604574422,0.62017,3227.0,3226.8,0.62018]
[1737604575030,0.62017,3227.0,3226.8,0.6202]
[1737604575225,0.62017,3227.0,3226.7,3.21244806]
[1737604575424,0.4985,3227.2,3226.7,3.21244806]
[1737604575631,0.4985,3227.2,3227.1,0.62015]
[1737604576029,1.11863,3227.2,3227.1,0.62015]
[1737604576227,1.11863,3227.2,3227.0,0.62016]
[1737604576429,1.11863,3227.2,3227.1,0.62015]
[1737604576430,0.4985,3227.2,3227.1,0.62015]
[1737604576630,0.51993006,3227.3,3227.2,0.62013]
[1737604580737,0.00463006,3227.3,3227.2,0.62013]
[1737604581229,0.00463006,3227.3,3227.2,41.42013]
[1737604585940,0.00463006,3227.3,3227.2,41.93723]
[1737604586233,0.00463006,3227.3,3227.2,41.42013]
[1737604586633,0.00463006,3227.3,3226.7,3.21244806]
[1737604586634,3.21243006,3227.3,3226.7,3.21244806]
[1737604586839,0.62018,3227.0,3226.8,0.6202]
[1737604587137,0.62018,3227.0,3226.9,41.42018]
[1737604587536,0.62016,3227.1,3226.9,40.8]
[1737604587733,0.62016,3227.1,3227.0,0.62017]
[1737604588129,1.09654,3227.2,3227.0,0.62017]
[1737604588739,0.62015,3227.1,3227.0,0.62017]
[1737604589336,0.4764,3227.2,3226.9,40.8]
[1737604589337,0.62017,3227.0,3226.9,40.8]
[1737604589932,0.4764,3227.2,3226.9,41.42017]
[1737604590240,0.62017,3227.0,3226.9,41.42017]
[1737604591940,0.62017,3227.0,3226.9,40.8]
[1737604598442,0.4764,3227.2,3226.9,40.8]
[1737604598642,0.4764,3227.2,3227.1,0.62015]
[1737604599041,0.4764,3227.2,3227.1,1.06984025]
[1737604599348,1.09653,3227.2,3227.1,1.41345876]
[1737604600047,1.09653,3227.2,3227.1,1.4134593]
[1737604600350,0.4764,3227.2,3227.1,1.4134593]
[1737604600742,0.4764,3227.2,3227.1,1.41345355]
[1737604600938,1.09653,3227.2,3227.1,0.44969025]
[1737604601147,0.4764,3227.2,3226.9,40.8]
[1737604601446,0.62021,3226.8,3226.7,0.00464806]
[1737604601844,0.4764,3227.2,3226.7,0.00464806]
[1737604602251,1.09654,3227.2,3226.8,0.6202]
[1737604602449,0.4764,3227.2,3226.7,0.00464806]
[1737604602648,1.09654,3227.2,3226.8,0.62019]
[1737604603753,1.09654,3227.2,3226.7,0.00464806]
[1737604603954,0.4764,3227.2,3227.0,0.62016]
[1737604604145,1.09654,3227.2,3226.8,0.62019]
[1737604604346,0.5162,3227.1,3226.8,0.6202]
[1737604605955,0.5162,3227.1,3226.9,0.62019]
[1737604606452,0.5162,3227.1,3226.8,0.6202]
[1737604606649,0.5162,3227.1,3226.7,0.00464806]
[1737604606844,1.13636,3227.1,3226.7,0.62485806]
[1737604607357,1.13636,3227.1,3226.7,0.00464806]
[1737604607551,1.13636,3227.1,3226.8,0.62019]
[1737604607952,1.13636,3227.1,3226.7,0.00464806]
[1737604608154,0.5162,3227.1,3226.7,0.00464806]
[1737604608459,0.4764,3227.2,3227.1,0.62015]
[1737604608660,0.4764,3227.2,3227.1,41.42015]
[1737604609163,0.4764,3227.2,3227.1,40.8]
[1737604609453,0.9643,3227.2,3227.1,40.8]
[1737604609848,1.58443,3227.2,3227.1,40.8]
[1737604610350,0.62018,3227.0,3226.7,0.62485806]
[1737604611061,0.62015,3227.1,3226.8,41.42019]
[1737604611256,0.62018,3227.0,3226.8,41.42019]
[1737604611755,0.62016,3227.1,3226.8,41.42019]
[1737604611960,0.62016,3227.1,3226.9,0.62019]
[1737604612556,0.9643,3227.2,3226.9,0.62019]
[1737604612756,0.62017,3227.0,3226.8,41.42019]
[1737604614359,0.62017,3227.0,3226.9,0.62019]
[1737604615158,0.62019,3226.9,3226.8,41.4202]
[1737604616264,0.9643,3227.2,3226.8,40.8]
[1737604616670,0.62016,3227.1,3227.0,0.62016]
[1737604616963,1.58444,3227.2,3227.1,0.62015]
[1737604618866,0.62015,3227.1,3227.0,0.62015]
[1737604619066,1.58444,3227.2,3227.1,0.62015]
[1737604620460,3.21243006,3227.3,3227.2,0.62013]
[1737604622669,0.00463006,3227.3,3227.2,0.62013]
[1737604623068,0.00463006,3227.3,3227.2,0.96409504]
[1737604623266,0.00463006,3227.3,3227.2,0.62013]
[1737604624561,0.00463006,3227.3,3227.2,0.96401348]
[1737604624769,0.00463006,3227.3,3227.2,1.41064475]
[1737604625065,0.00463006,3227.3,3227.2,1.41063154]
[1737604625264,0.00463006,3227.3,3227.2,0.62013]
[1737604625461,0.00463006,3227.3,3227.2,0.96397004]
[1737604626083,0.00463006,3227.3,3227.2,0.62013]
[1737604629969,0.00463006,3227.3,3227.2,0.96391785]
[1737604630368,0.00463006,3227.3,3227.2,1.41040501]
[1737604630561,0.00463006,3227.3,3227.2,0.62013]
[1737604634172,0.00463006,3227.3,3227.2,0.96390624]
[1737604634374,0.00463006,3227.3,3227.2,0.62013]
[1737604635774,0.00463006,3227.3,3227.2,0.96392161]
[1737604635977,0.00463006,3227.3,3227.2,0.62013]
[1737604636371,0.00463006,3227.3,3227.2,0.96393089]
[1737604636566,0.00463006,3227.3,3227.2,0.62013]
[1737604636769,0.00463006,3227.3,3227.2,0.96392842]
[1737604636968,0.00463006,3227.3,3227.2,0.62013]
[1737604637871,0.00463006,3227.3,3227.2,1.41923289]
[1737604638073,0.00463006,3227.3,3227.2,1.41922547]
[1737604638676,0.00463006,3227.3,3227.2,1.86577659]
[1737604638880,0.00463006,3227.3,3227.2,1.41049801]
[1737604639378,0.62474006,3227.3,3227.2,0.44655112]
[1737604639574,0.00463006,3227.3,3226.8,40.8]
[1737604639775,0.00463006,3227.3,3227.2,0.62013]
[1737604642373,0.62474006,3227.3,3227.2,0.62013]
[1737604642574,0.00463006,3227.3,3227.2,0.62013]
[1737604644584,0.00463006,3227.3,3227.2,1.41948492]
[1737604644785,0.00463006,3227.3,3227.2,1.8661683]
[1737604644984,0.00463006,3227.3,3227.2,1.86616789]
[1737604645286,0.00463006,3227.3,3227.2,1.86620346]
[1737604645778,0.00463006,3227.3,3227.2,1.06681338]
[1737604646084,0.00463006,3227.3,3227.2,1.86620178]
[1737604648081,0.00463006,3227.3,3227.2,1.86631482]
[1737604648676,0.00463006,3227.3,3227.2,1.41086301]
[1737604648882,0.48403006,3227.3,3227.2,1.06681338]
[1737604649083,1.59414006,3227.3,3227.2,1.06681338]
[1737604649483,0.97403006,3227.3,3227.2,0.62013]
[1737604649685,0.97403006,3227.3,3227.2,0.96435494]
[1737604649884,0.97403006,3227.3,3227.2,0.62013]
[1737604650181,0.97403006,3227.3,3227.2,0.96435836]
[1737604650587,0.00463006,3227.3,3227.2,0.96435836]
[1737604650885,0.00463006,3227.3,3227.2,1.41431763]
[1737604651388,0.00463006,3227.3,3227.2,42.66136642]
[1737604652089,0.00463006,3227.3,3227.2,42.66133732]
[1737604652590,0.00463006,3227.3,3227.2,42.66133134]
[1737604653389,0.00463006,3227.3,3227.2,42.661319]
[1737604654185,0.00463006,3227.3,3227.2,42.66127637]
[1737604656188,0.00463006,3227.3,3227.2,42.66124297]
[1737604658091,1.12774006,3227.3,3227.2,42.21134287]
[1737604658292,1.12774006,3227.3,3227.2,42.2113557]
[1737604659095,1.12774006,3227.3,3227.2,41.5912257]
[1737604659297,1.12774006,3227.3,3227.2,0.44704879]
[1737604659784,0.6202,3226.9,3226.8,41.4202]
[1737604660187,0.62015,3227.1,3226.9,0.62019]
[1737604660393,0.50763006,3227.3,3227.2,0.62013]
[1737604660693,1.12774006,3227.3,3227.2,0.62013]
[1737604660889,0.50763006,3227.3,3227.1,0.62013]
[1737604661095,1.12775006,3227.3,3227.2,0.62013]
[1737604662594,0.50763006,3227.3,3227.2,0.62013]
[1737604662788,0.00463006,3227.3,3227.2,0.62013]
[1737604664293,0.00463006,3227.3,3226.8,40.8]
[1737604664294,0.62014,3227.2,3227.1,0.62013]
[1737604664493,0.5153,3227.2,3227.1,0.62013]
[1737604664888,1.13543,3227.2,3227.1,0.62013]
[1737604665796,0.5153,3227.2,3227.1,0.62013]
[1737604671496,0.62018,3227.0,3226.8,40.8]
[1737604671694,0.5044,3226.9,3226.8,41.42019]
[1737604671894,1.0125,3226.9,3226.8,41.42019]
[1737604672500,1.63269,3226.9,3226.8,41.42021]
[1737604673195,1.0125,3226.9,3226.8,41.42021]
[1737604674003,0.5153,3227.2,3227.1,0.62015]
[1737604674504,0.50903006,3227.3,3227.2,0.62013]
[1737604675596,1.12914006,3227.3,3227.2,0.62013]
[1737604676402,1.12914006,3227.3,3226.9,0.5184]
[1737604676604,1.12914006,3227.3,3227.0,0.3438304]
[1737604676802,0.50903006,3227.3,3227.2,0.62013]
[1737604677301,1.12914006,3227.3,3227.2,0.62013]
[1737604677607,0.50903006,3227.3,3227.2,0.62013]
[1737604677799,0.00463006,3227.3,3227.2,0.62013]
[1737604690115,0.00463006,3227.3,3227.2,0.96407272]
[1737604690316,0.00463006,3227.3,3227.2,1.41255274]
[1737604690720,0.00463006,3227.3,3227.2,1.8558799]
[1737604691012,0.00463006,3227.3,3227.2,1.40739988]
[1737604691219,0.00463006,3227.3,3227.2,1.06345716]
[1737604691413,0.00463006,3227.3,3227.2,0.62013]
[1737604693627,1.54975,3228.5,3228.4,0.6199]
[1737604693628,1.0052,3228.5,3228.4,0.6199]
[1737604694018,0.5006,3228.5,3228.4,41.4199]
[1737604694322,3.7161,3228.6,3228.5,0.61988]
[1737604694323,3.2078,3228.6,3228.5,0.61988]
[1737604694622,0.5046,3228.9,3228.8,0.61982]
[1737604696023,4.2167,3229.2,3229.1,0.61976]
[1737604697623,13.35142468,3229.3,3229.2,0.61975]
[1737604697823,13.35142468,3229.3,3228.7,0.5139]
[1737604698020,13.35142468,3229.3,3228.9,40.8]
[1737604698223,0.61978,3229.1,3228.9,41.41979]
[1737604698418,0.4783,3229.0,3228.9,41.41979]
[1737604698729,0.9702,3229.0,3228.9,41.41979]
[1737604698926,3.2078,3229.6,3228.9,40.8]
[1737604699121,0.61971,3229.4,3229.2,0.61973]
[1737604699430,1.1083,3229.5,3229.3,0.61973]
[1737604699729,0.4886,3229.5,3229.4,0.61971]
[1737604702823,3.2078,3229.6,3229.0,0.5245]
[1737604703128,3.2078,3229.6,3229.5,0.61969]
[1737604703431,3.7202,3229.6,3229.5,0.61969]
[1737604703918,3.7202,3229.6,3228.9,44.0078]
[1737604704123,3.7202,3229.6,3229.2,0.61974]
[1737604704124,0.61972,3229.4,3229.2,0.61974]
[1737604704319,3.7202,3229.6,3228.9,3.2078]
[1737604704524,3.7202,3229.6,3229.0,0.61977]
[1737604704826,0.61974,3229.3,3229.1,0.61975]
[1737604705129,0.61974,3229.3,3228.9,3.2078]
[1737604705130,0.6197,3229.5,3229.3,0.61972]
[1737604705323,0.61971,3229.4,3229.2,0.61973]
[1737604705523,0.61971,3229.4,3229.3,0.61973]
[1737604705926,0.61973,3229.3,3228.9,3.2078]
[1737604706330,3.7202,3229.6,3228.9,3.2078]
[1737604706927,0.61976,3229.2,3229.0,0.61977]
[1737604707225,3.7202,3229.6,3228.9,0.61979]
[1737604707429,3.7202,3229.6,3228.8,40.8]
[1737604707430,0.521,3229.1,3228.8,40.8]
[1737604707631,0.521,3229.1,3229.0,0.61978]
[1737604710041,0.521,3229.1,3228.8,40.8]
[1737604710332,0.5141,3229.0,3228.9,0.6198]
[1737604710831,0.9897,3229.0,3228.9,0.6198]
[1737604712430,0.5141,3229.0,3228.9,0.6198]
[1737604714439,0.521,3229.1,3229.0,0.61978]
[1737604725737,0.6198,3229.0,3228.9,0.61978]
[1737604725942,0.61978,3229.0,3228.9,0.6198]
[1737604726531,3.2078,3229.2,3228.8,40.8]
[1737604726738,3.2078,3229.6,3228.9,5.54930769]
[1737604726937,0.524,3229.5,3229.0,1.001]
[1737604727136,0.524,3229.5,3229.1,40.8]
[1737604727531,0.524,3229.5,3229.4,0.61971]
[1737604728139,0.524,3229.5,3229.4,41.41971]
[1737604733446,1.0103,3229.8,3229.4,41.41971]
[1737604733650,1.0103,3229.8,3229.7,0.61965]
[1737604734650,0.488,3229.8,3229.7,0.61965]
[1737604736855,0.488,3229.8,3229.4,40.8]
[1737604737056,0.6198,3229.0,3228.8,0.61981]
[1737604737361,0.9979,3228.9,3228.4,3.2078]
[1737604737560,0.9979,3228.9,3228.7,0.61983]
[1737604737561,0.5119,3228.8,3228.7,0.61983]
[1737604738354,0.61986,3228.6,3228.5,40.80464806]
[1737604738549,0.5119,3228.8,3228.5,41.42451806]
[1737604738550,0.61986,3228.7,3228.5,41.42451806]
[1737604738752,0.61986,3228.6,3228.5,40.80464806]
[1737604740063,0.61986,3228.6,3228.5,0.00464806]
[1737604741058,3.2078,3228.7,3228.6,0.61986]
[1737604741665,3.2078,3228.7,3228.6,1.09836]
[1737604747766,3.2078,3228.7,3228.5,0.50374806]
[1737604747767,0.61986,3228.6,3228.5,0.00464806]
[1737604747969,1.59436,3228.6,3228.5,0.62452806]
[1737604748266,0.9745,3228.6,3228.5,0.62452806]
[1737604748563,3.2078,3228.7,3228.6,0.61986]
[1737604749662,0.5269,3228.9,3228.5,0.98284806]
[1737604749862,0.5269,3228.9,3228.8,0.61982]
[1737604752160,4.1823,3229.1,3228.8,0.61982]
[1737604752364,4.1823,3229.1,3229.0,0.61978]
[1737604753468,0.61979,3229.0,3228.9,0.61979]
[1737604753763,1.13429,3229.0,3228.9,0.61979]
[1737604754161,0.5145,3229.0,3228.9,0.61979]
[1737604754557,1.13428,3229.0,3228.9,0.61979]
[1737604755968,0.61986,3228.6,3228.5,0.62451806]
[1737604756357,0.61985,3228.7,3228.6,0.61985]
[1737604756559,0.5145,3229.0,3228.7,0.61984]
[1737604756560,0.61983,3228.8,3228.7,0.61984]
[1737604757365,0.5145,3229.0,3228.5,0.00464806]
[1737604757569,0.61984,3228.7,3228.6,0.61985]
[1737604758458,0.61983,3228.8,3228.7,0.61983]
[1737604761471,0.61984,3228.7,3228.6,0.61985]
[1737604761765,0.61986,3228.6,3228.5,0.00464806]
[1737604762067,4.34246,3228.6,3228.5,0.00464806]
[1737604771870,3.2078,3228.6,3228.5,0.62452806]
[1737604772072,3.82766,3228.6,3228.5,0.00464806]
[1737604772877,3.82766,3228.6,3228.5,0.62452806]
[1737604773480,3.2078,3228.6,3228.5,0.62452806]
[1737604774380,0.5282,3228.9,3228.5,0.00464806]
[1737604774577,0.61986,3228.6,3228.5,0.00464806]
[1737604778074,0.5282,3228.9,3228.5,0.00464806]
[1737604778383,0.61985,3228.7,3228.6,0.61985]
[1737604778582,0.61985,3228.7,3228.6,0.9639]
[1737604779683,0.61985,3228.7,3228.6,1.58376]
[1737604780583,1.14802,3228.9,3228.7,0.61983]
[1737604780784,0.61984,3228.8,3228.7,0.61984]
[1737604781085,0.61984,3228.7,3228.6,1.58375]
[1737604781480,0.61984,3228.7,3228.6,0.9639]
[1737604781887,0.61984,3228.7,3228.6,1.58376]
[1737604782286,0.61984,3228.7,3228.6,0.9639]
[1737604783190,0.61984,3228.7,3228.6,1.58376]
[1737604783689,0.61984,3228.7,3228.6,0.9639]
[1737604784288,0.61984,3228.7,3228.6,1.58376]
[1737604786789,0.61984,3228.7,3228.6,0.9639]
[1737604787084,0.61986,3228.6,3228.5,0.00464806]
[1737604788492,3.82766,3228.6,3228.5,0.00464806]
[1737604800202,0.5282,3228.9,3228.5,0.00464806]
[1737604800504,1.14801,3228.9,3228.8,0.61982]
[1737604801910,0.61982,3228.8,3228.7,0.61983]
[1737604802596,0.5282,3228.9,3228.6,0.9986]
[1737604803004,1.14801,3228.9,3228.8,0.61982]
[1737604804206,0.5282,3228.9,3228.6,0.9986]
[1737604804434,0.61986,3228.6,3228.5,0.00464806]
[1737604805300,0.61983,3228.8,3228.7,0.61984]
[1737604805502,0.5282,3228.9,3228.6,0.61985]
[1737604805709,0.61983,3228.8,3228.6,0.61985]
[1737604806415,0.61983,3228.8,3228.5,0.00464806]
[1737604806416,0.5282,3228.9,3228.8,0.61982]
[1737604806803,1.148,3228.9,3228.8,0.61982]
[1737604807005,0.5282,3228.9,3228.5,0.00464806]
[1737604807410,0.61986,3228.6,3228.5,0.00464806]
[1737604807814,0.5282,3228.9,3228.5,0.00464806]
[1737604808012,3.2078,3229.0,3228.5,0.00464806]